fUSD/lending_fUSD_20240707
["ID","MTS","AMOUNT","RATE_DAILY","PERIOD"]
[331412718,1720355910469,13404.06620295,0.00011199,2]
[331412719,1720355910542,146369.21188221,0.00011199,2]
[331412720,1720355917526,314.82,0.00011083,2]
[331412721,1720355919531,16122.5261197,0.00011199,2]
[331412722,1720355923083,155.0,0.00011199,2]
[331412723,1720355955210,3074.42673232,0.00011199,2]
[331412724,1720355972518,9243.00446491,0.00011199,2]
[331412729,1720356016019,167.45232338,0.00011199,2]
[331412732,1720356044178,155.13954738,0.00011199,2]
[331412736,1720356069810,5125.05847204,0.00011199,2]
[331412756,1720356137506,-227.22563372,0.00012273,2]
[331412757,1720356137528,-356.38582122,0.00012314,2]
[331412758,1720356137551,-446.118849,0.00012692,2]
[331412759,1720356137574,-276.945,0.00012721,2]
[331412760,1720356137602,-701.0,0.00012812,2]
[331412761,1720356137624,-250.0,0.00012813,2]
[331412762,1720356137647,-250.0,0.00012821,2]
[331412763,1720356137668,-681.0,0.00012921,2]
[331412764,1720356137692,-2743.46,0.00013022,2]
[331412765,1720356138196,-300.0,0.00013091,2]
[331412766,1720356138230,-7588.07804438,0.00013092,2]
[331412767,1720356138298,-6179.78665168,0.00013094,2]
[331412770,1720356148922,-10889.52334832,0.00013094,2]
[331412771,1720356148948,-3074.42673232,0.00013128,2]
[331412772,1720356148974,-797.07,0.00013159,2]
[331412773,1720356149000,-314.82,0.00013346,2]
[331412774,1720356149027,-330.66,0.00013463,2]
[331412775,1720356149051,-455.71451529,0.00013472,2]
[331412776,1720356149075,-1265.01058332,0.00013472,2]
[331412777,1720356149098,-579.91146984,0.00013516,2]
[331412778,1720356149121,-205.4353331,0.00013516,2]
[331412779,1720356149145,-1145.4913337,0.00013516,2]
[331412780,1720356149170,-941.93668411,0.00013574,2]
[331412783,1720356158350,-18887.85984864,0.00013574,2]
[331412784,1720356158375,-1112.14015136,0.00013574,2]
[331412799,1720356347192,-1817.20672033,0.00012302,2]
[331412800,1720356347217,-169.34,0.00013126,2]
[331412801,1720356347242,-356.38582122,0.00013128,2]
[331412802,1720356347265,-272.99327556,0.00013472,2]
[331412803,1720356347288,-263.4402613,0.00013472,2]
[331412804,1720356347308,-318.31716313,0.00013506,2]
[331412805,1720356347331,-150.0,0.00013534,2]
[331412806,1720356347358,-361.91007709,0.00013574,2]
[331412807,1720356347384,-1350.0,0.00013574,2]
[331412808,1720356347406,-8601.03583999,0.0001358,2]
[331412809,1720356347430,-6339.37084138,0.0001363,2]
[331412810,1720356359799,-973.17891265,0.00013026,2]
[331412811,1720356359822,-13542.19576721,0.0001363,2]
[331412812,1720356359846,-1000.0,0.000138,2]
[331412813,1720356359872,-1000.0,0.000138,2]
[331412814,1720356359899,-1006.0,0.000138,2]
[331412815,1720356359925,-197.974977,0.00013801,2]
[331412816,1720356359949,-2280.65034314,0.00013849,2]
[331412817,1720356369840,-300.0,0.00013629,2]
[331412818,1720356369867,-1819.86267902,0.00013801,2]
[331412819,1720356369890,-337.23156241,0.00013849,2]
[331412820,1720356369917,-17542.90575857,0.0001388,2]
[331412822,1720356379936,-20000.0,0.0001388,2]
[331412824,1720356419761,-3000.0,0.0001386,2]
[331412825,1720356419786,-13707.3374156,0.0001388,2]
[331412826,1720356419809,-500.0,0.00013888,2]
[331412827,1720356420336,-200.0,0.00013888,2]
[331412828,1720356420375,-164.95864486,0.000139,2]
[331412829,1720356420397,-661.0041,0.000139,2]
[331412830,1720356420420,-481.9187,0.000139,2]
[331412831,1720356420445,-150.0,0.000139,2]
[331412832,1720356420472,-1134.78113954,0.000139,2]
[331412840,1720356577963,150.0,0.00011507,2]
[331412841,1720356577991,150.0,0.00011507,2]
[331412842,1720356578018,12.7,0.00011507,2]
[331412845,1720356606604,150.0,0.00011,2]
[331412846,1720356606627,150.0,0.00011,2]
[331412847,1720356606652,150.0,0.00011,2]
[331412848,1720356606674,150.0,0.00011,2]
[331412849,1720356606697,150.0,0.00011,2]
[331412850,1720356606719,150.0,0.00011,2]
[331412851,1720356606745,150.0,0.00011,2]
[331412852,1720356606768,150.0,0.00011,2]
[331412853,1720356606791,150.0,0.00011,2]
[331412854,1720356606815,150.0,0.00011,2]
[331412855,1720356606838,150.0,0.00011,2]
[331412856,1720356606861,223.67379613,0.00011,2]
[331412857,1720356606890,1299.19613463,0.00011,2]
[331412878,1720356634836,-169.01,0.00013445,2]
[331412879,1720356634856,-200.0,0.00013468,2]
[331412880,1720356634879,-312.7,0.00013771,2]
[331412881,1720356634897,-185.57329319,0.00013799,2]
[331412882,1720356634917,-300.0,0.00013899,2]
[331412883,1720356634935,-241.27338472,0.000139,2]
[331412884,1720356634953,-1000.0,0.000139,2]
[331412885,1720356634969,-4080.31542773,0.000139,2]
[331412886,1720356634990,-883.54995,0.000139,2]
[331412887,1720356635010,-846.47,0.000139,2]
[331412888,1720356635030,-350.2299999,0.000139,2]
[331412889,1720356635052,-366.13012476,0.000139,2]
[331412890,1720356635113,-1489.75692948,0.000139,2]
[331412891,1720356635132,-1715.56854496,0.000139,2]
[331412892,1720356635153,-2887.56226414,0.000139,2]
[331412893,1720356635173,-5765.55757404,0.000139,2]
[331412894,1720356635190,-6293.50617127,0.000139,2]
[331412895,1720356635211,-976.69261047,0.000139,2]
[331412896,1720356635233,-635.97483763,0.000139,2]
[331412897,1720356635253,-265.46731296,0.000139,2]
[331412898,1720356635270,-121.51126616,0.000139,2]
[331412899,1720356635293,-199.25985781,0.000139,2]
[331412900,1720356635309,-1140.45283559,0.000139,2]
[331412901,1720356635324,-1014.71,0.00013973,3]
[331412902,1720356635342,-197.974977,0.00013974,2]
[331412903,1720356635357,-320.77112397,0.00013991,2]
[331412904,1720356635373,-935.21177348,0.00013997,2]
[331412905,1720356635438,-5000.20911766,0.00013997,2]
[331412906,1720356635458,-1481.42861358,0.00013997,2]
[331412907,1720356635475,-209.87546738,0.00013999,2]
[331412908,1720356635491,-1237.18488637,0.00013999,2]
[331412909,1720356635507,-1072.0,0.00014,2]
[331412910,1720356635523,-1941.51103267,0.00014,2]
[331412927,1720356638379,-4246.5829126,0.00014,2]
[331412928,1720356638398,-3396.25501358,0.00014,2]
[331412929,1720356638673,-771.07115909,0.00014,2]
[331412930,1720356638691,-987.45743925,0.00014,2]
[331412931,1720356638738,-464.81408718,0.00014,2]
[331412932,1720356638758,-5757.05132195,0.00014,2]
[331412933,1720356638778,-758.11221771,0.00014,2]
[331412934,1720356638799,-265.615,0.00014,2]
[331412936,1720356638942,-7775.9653312,0.00014,2]
[331412994,1720356641040,-2837.74696614,0.00014,2]
[331413075,1720356642511,-1619.20385,0.00014,2]
[331413076,1720356642535,-24093.2743351,0.00014,2]
[331413077,1720356642550,-3034.23261669,0.00014,2]
[331413078,1720356642565,-319.81405891,0.00014,2]
[331413079,1720356642580,-60293.08773721,0.00014,2]
[331413080,1720356642592,-28381.34,0.00014,2]
[331413081,1720356642605,-933.40452763,0.00014,2]
[331413082,1720356642618,-161670.45479601,0.00014,2]
[331413083,1720356642630,-312.004999,0.00014,2]
[331413084,1720356642642,-6411.89114171,0.00014,2]
[331413085,1720356642653,-308.94361421,0.00014,2]
[331413086,1720356642667,-3777.50181625,0.00014,2]
[331413151,1720356646958,-1065.55614246,0.00014,2]
[331413152,1720356646970,-1795.36741921,0.00014,2]
[331413153,1720356646983,-1631.90187909,0.00014,2]
[331413154,1720356646995,-11910.39395879,0.00014,2]
[331413155,1720356647007,-828.46681849,0.00014,2]
[331413156,1720356647046,-555.0,0.00014,2]
[331413157,1720356647058,-556.04209334,0.00014,2]
[331413158,1720356647070,-3567.11591837,0.00014,2]
[331413159,1720356647081,-500.0,0.00014,2]
[331413160,1720356647093,-1031.497246,0.00014,2]
[331413161,1720356647106,-384.47,0.00014,2]
[331413162,1720356647117,-2897.05,0.00014,2]
[331413163,1720356647129,-3056.25,0.00014,2]
[331413164,1720356647142,-1750.0,0.00014,2]
[331413165,1720356647156,-1991.635596,0.00014,2]
[331413166,1720356647169,-21888.96346288,0.00014,2]
[331413167,1720356647181,-2136.19702433,0.00014,2]
[331413168,1720356647193,-360.08234564,0.00014,2]
[331413169,1720356647208,-373526.71288739,0.00014,2]
[331413171,1720356648484,-303.6841866,0.00014,2]
[331413172,1720356648496,-13349.66835366,0.00014,2]
[331413173,1720356648531,-5976.31321052,0.00014,2]
[331413174,1720356648542,-292.5,0.00014,2]
[331413175,1720356648555,-344.447979,0.00014,2]
[331413176,1720356648567,-350.62,0.00014,2]
[331413177,1720356648579,-2448.6,0.00014,2]
[331413178,1720356648590,-795.92013436,0.00014,2]
[331413179,1720356648601,-1067.81353758,0.00014,2]
[331413180,1720356648612,-455.24917089,0.00014,2]
[331413181,1720356648623,-371161.22529309,0.00014,2]
[331413182,1720356648635,-3630.38255006,0.00014,2]
[331413183,1720356648646,-1203.9204216,0.00014,2]
[331413184,1720356771460,-150.0,0.00012302,2]
[331413185,1720356845696,150.0,0.00011199,2]
[331413186,1720356845720,786.61421136,0.00011199,2]
[331413187,1720356922612,179.10041936,0.00011199,2]
[331413188,1720356932138,7489.87394247,0.00011199,2]
[331413189,1720356992214,290.66575246,0.00011199,2]
[331413191,1720357178817,200.0,0.00011199,2]
[331413192,1720357178853,2601.59501425,0.00011199,2]
[331413193,1720357209790,337.2,0.00010893,2]
[331413194,1720357303788,2379.48035571,0.00011199,2]
[331413197,1720357420879,524.57681731,0.00011199,2]
[331413198,1720357512297,250.32575246,0.00011199,2]
[331413199,1720357512321,150.0,0.00011199,2]
[331413200,1720357512345,150.0,0.00011199,2]
[331413201,1720357512376,2524.10097986,0.00011199,2]
[331413202,1720357514194,150.0,0.00011199,2]
[331413203,1720357514220,150.0,0.00011199,2]
[331413204,1720357514243,250.58245476,0.00011199,2]
[331413205,1720357514268,394.92576623,0.00011199,2]
[331413220,1720357527289,1817.20672033,0.00011199,2]
[331413221,1720357546440,296.78659241,0.00011199,2]
[331413222,1720357552316,530.56091548,0.00011199,2]
[331413223,1720357558239,7556.18852005,0.00011199,2]
[331413224,1720357566316,1121.41583717,0.00011199,2]
[331413225,1720357570159,2379.48035571,0.00011199,2]
[331413227,1720357600492,440.54450095,0.00011199,2]
[331413228,1720357636491,181.21410071,0.00011199,2]
[331413229,1720357638274,185.67303786,0.00011199,2]
[331413230,1720357680748,7556.18852005,0.00011199,2]
[331413232,1720357754726,330.92471978,0.00011199,2]
[331413233,1720357764078,320.34,0.00010851,2]
[331413234,1720357780708,544.76386976,0.00011199,2]
[331413235,1720357788102,4660.1617476,0.00011199,2]
[331413239,1720357828204,5602.87066756,0.00011199,2]
[331413243,1720357832476,-2125.17772658,0.00012273,2]
[331413245,1720357832486,-945.50822099,0.00012302,2]
[331413247,1720357832496,-150.0,0.000126,2]
[331413249,1720357832506,-300.0,0.00012639,2]
[331413251,1720357832515,-24.55000178,0.0001264,2]
[331413253,1720357832528,-441.55013377,0.0001264,2]
[331413254,1720357832626,-2605.7965384,0.0001264,2]
[331413255,1720357832637,-1256.0721124,0.0001264,2]
[331413256,1720357832650,-12032.47121365,0.0001264,2]
[331413257,1720357832660,-250.0,0.00012645,2]
[331413258,1720357832671,-1000.0,0.00012723,2]
[331413259,1720357832681,-264.52,0.00012773,2]
[331413260,1720357832691,-250.0,0.00012778,2]
[331413261,1720357832700,-320.34,0.00013115,2]
[331413262,1720357832710,-1817.20672033,0.00013128,2]
[331413263,1720357832719,-169.34,0.00013332,2]
[331413264,1720357832729,-4440.09976877,0.00013472,2]
[331413265,1720357832740,-201.06115394,0.000135,2]
[331413266,1720357832749,-424.55,0.000135,2]
[331413267,1720357832759,-524.57681731,0.00013574,2]
[331413268,1720357832768,-2739.00046579,0.00013574,2]
[331413269,1720357832778,-297001.22313361,0.00013574,2]
[331413270,1720357832809,-1449.1606649,0.00013574,2]
[331413271,1720357832826,-1829.30484372,0.00013574,2]
[331413272,1720357832841,-3380.00047024,0.00013574,2]
[331413276,1720357835212,945.50822099,0.00011199,2]
[331413290,1720357840127,-32771.12344611,0.00013574,2]
[331413291,1720357840137,-150.0,0.0001372,2]
[331413292,1720357840153,-150.0,0.00013721,2]
[331413293,1720357840163,-150.0,0.00013744,2]
[331413294,1720357840173,-150.0,0.00013754,2]
[331413295,1720357840183,-150.0,0.00013754,2]
[331413296,1720357840194,-150.0,0.00013756,2]
[331413297,1720357840204,-150.0,0.00013771,2]
[331413298,1720357840215,-150.0,0.00013789,2]
[331413299,1720357840226,-1905.670308,0.00013801,2]
[331413300,1720357840236,-449.546122,0.00013801,2]
[331413301,1720357840247,-299.923914,0.00013801,2]
[331413302,1720357840257,-150.0,0.00013802,2]
[331413303,1720357840267,-356.38582122,0.00013802,2]
[331413304,1720357840277,-150.0,0.00013807,2]
[331413305,1720357840287,-150.0,0.00013815,2]
[331413306,1720357840297,-150.0,0.00013834,2]
[331413307,1720357840307,-150.0,0.00013859,2]
[331413308,1720357840320,-420.0,0.00013866,2]
[331413309,1720357840332,-150.0,0.00013871,2]
[331413310,1720357840342,-500.0,0.00013888,2]
[331413311,1720357840353,-481.9187,0.00013889,2]
[331413312,1720357840363,-165.98566007,0.000139,2]
[331413313,1720357840374,-661.0041,0.000139,2]
[331413314,1720357840385,-150.0,0.00013903,2]
[331413315,1720357840395,-150.0,0.00013909,2]
[331413316,1720357840405,-150.0,0.00013911,2]
[331413317,1720357840415,-150.0,0.00013911,2]
[331413318,1720357840426,-150.0,0.00013913,2]
[331413319,1720357840436,-150.0,0.00013919,2]
[331413320,1720357840447,-150.0,0.00013921,2]
[331413321,1720357840458,-150.0,0.00013929,2]
[331413322,1720357840469,-150.0,0.00013932,2]
[331413323,1720357840478,-150.0,0.00013951,2]
[331413324,1720357840488,-150.0,0.00013969,2]
[331413325,1720357840499,-1830.0,0.00013969,2]
[331413326,1720357840510,-206.902,0.00013969,2]
[331413327,1720357840521,-809.0,0.00013969,2]
[331413328,1720357840531,-150.0,0.00013969,2]
[331413329,1720357840541,-1305.0,0.00013969,2]
[331413330,1720357840552,-2413.0,0.00013969,2]
[331413331,1720357840562,-3250.0,0.00013969,2]
[331413332,1720357840572,-548.0,0.00013969,2]
[331413333,1720357840584,-1989.0,0.00013969,2]
[331413334,1720357840593,-283.0,0.00013969,2]
[331413335,1720357840603,-1532.105734,0.00013973,2]
[331413336,1720357840613,-1905.670308,0.00013974,2]
[331413337,1720357840623,-449.546122,0.00013974,2]
[331413338,1720357840633,-299.923914,0.00013974,2]
[331413339,1720357840643,-150.0,0.00013988,2]
[331413340,1720357840653,-341763.49171628,0.00013989,2]
[331413341,1720357840663,-63407.67664218,0.0001399,2]
[331413342,1720357840674,-618.59244319,0.00013999,2]
[331413343,1720357840684,-197.71429056,0.00013999,2]
[331413344,1720357840694,-962.0,0.00014,2]
[331413345,1720357840704,-4813.706,0.00014,2]
[331413346,1720357840714,-5813.0,0.00014,2]
[331413347,1720357840724,-1663.0,0.00014,2]
[331413348,1720357840733,-245521.24227279,0.00014,2]
[331413350,1720357840839,-630.37381688,0.00014,2]
[331413351,1720357840851,-521.2459106,0.00014,2]
[331413352,1720357840863,-40434.21669472,0.00014,2]
[331413353,1720357840914,-162.11159138,0.0001389,2]
[331413354,1720357840925,-331.33966187,0.00014,2]
[331413355,1720357841066,-306.24039448,0.00014,2]
[331413356,1720357841152,-850.50562043,0.00013153,2]
[331413357,1720357841166,-300.17,0.00013153,2]
[331413358,1720357841178,-1655.05436443,0.00013153,2]
[331413359,1720357841190,-364.18212,0.00013153,2]
[331413360,1720357841482,-879.53341354,0.00013153,2]
[331413361,1720357841494,-412.09320449,0.00013153,2]
[331413362,1720357841504,-644.68536421,0.00014,2]
[331413363,1720357841516,-1273.216,0.00014,2]
[331413457,1720357845854,-162.11159136,0.00013892,2]
[331413458,1720357845864,-309.29622159,0.00013999,2]
[331413459,1720357845873,-57740.21173288,0.00014,2]
[331413460,1720357845883,-208.63065251,0.00014,2]
[331413461,1720357845892,-348677.78523462,0.00014,2]
[331413462,1720357845904,-25847.785215,0.00014,2]
[331413463,1720357845920,-467.38669201,0.00014,2]
[331413474,1720357847140,-524.57681731,0.00013543,2]
[331413475,1720357847154,-2311.08318269,0.00014,2]
[331413476,1720357856119,150.0,0.00011199,2]
[331413477,1720357856147,5452.87066756,0.00011199,2]
[331413479,1720358250139,1091.62426121,0.00011199,2]
[331413480,1720358310701,288.3,0.00011265,2]
[331413482,1720358527058,3167.20507123,0.00011199,2]
[331413483,1720358527085,10000.0,0.00011199,2]
[331413484,1720358527109,10000.0,0.00011199,2]
[331413485,1720358527134,10000.0,0.00011199,2]
[331413486,1720358527159,10000.0,0.00011199,2]
[331413487,1720358527198,10000.0,0.00011199,2]
[331413488,1720358527226,10000.0,0.00011199,2]
[331413489,1720358527254,10000.0,0.00011199,2]
[331413490,1720358527279,10000.0,0.00011199,2]
[331413491,1720358527303,10000.0,0.00011199,2]
[331413492,1720358527327,10000.0,0.00011199,2]
[331413493,1720358527356,7636.19061318,0.00011199,2]
[331413494,1720358562302,2363.80938682,0.00011199,2]
[331413495,1720358562329,3794.82151991,0.00011199,2]
[331413496,1720358573671,727.74950747,0.00011199,2]
[331413497,1720358589548,2738.14487436,0.00011199,2]
[331413501,1720358642384,2470.30408467,0.00011199,2]
[331413504,1720358656311,7246.62153202,0.00011199,2]
[331413507,1720358693222,3111.08002322,0.00011199,2]
[331413508,1720358717587,1386.48863471,0.00011199,2]
[331413509,1720358720008,2333.37501314,0.00011199,2]
[331413510,1720358722002,1903.65279599,0.00011199,2]
[331413511,1720358763415,651.44479338,0.00011199,2]
[331413512,1720358767327,5602.87066756,0.00011199,2]
[331413513,1720358767433,1055.35982882,0.00011199,2]
[331413514,1720358767672,1399.54620502,0.00011199,2]
[331413517,1720358771738,1135.76118208,0.00011199,2]
[331413518,1720358771866,1421.41583717,0.00011199,2]
[331413519,1720358775895,647.79973678,0.00011199,2]
[331413520,1720358779758,227.22563372,0.00011199,2]
[331413522,1720358816725,150.0,0.00011199,2]
[331413523,1720358816748,683.6854996,0.00011199,2]
[331413524,1720358816802,660.70344244,0.00011199,2]
[331413525,1720358816970,155.872348,0.00011199,2]
[331413527,1720358826089,721.44508691,0.00011199,2]
[331413528,1720358826252,789.03476565,0.00011199,2]
[331413529,1720358841469,1253.30119177,0.00011199,2]
[331413530,1720358853343,526.09991014,0.00011199,2]
[331413532,1720358867965,436.0449423,0.00011199,2]
[331413533,1720358871516,623.48458061,0.00011199,2]
[331413534,1720358880614,163.73601725,0.00011199,2]
[331413535,1720358880861,7556.18852005,0.00011199,2]
[331413536,1720358893851,603.43249495,0.00011199,2]
[331413537,1720358896795,415.70505063,0.00011199,2]
[331413538,1720358897151,155.93987876,0.00011199,2]
[331413539,1720358904537,155.0,0.00011199,2]
[331413540,1720358907439,391.71,0.00010847,2]
[331413541,1720358915853,297.24474814,0.00011199,2]
[331413542,1720358919127,366.11090361,0.00011199,2]
[331413543,1720358919369,155.65157428,0.00011199,2]
[331413544,1720358925605,297.06301961,0.00011199,2]
[331413545,1720358927890,155.0,0.00011199,2]
[331413553,1720358955356,5146.24556428,0.00011199,2]
[331413558,1720358965763,4928.67468459,0.00011199,2]
[331413559,1720358965944,1058.55462262,0.00011199,2]
[331413560,1720358966081,606.45792289,0.00011199,2]
[331413561,1720358979111,10198.56473186,0.00011199,2]
[331413562,1720358984567,2884.20773097,0.00011199,2]
[331413565,1720358997696,5602.87066756,0.00011199,2]
[331413566,1720358999256,3394.25146719,0.00011199,2]
[331413567,1720359002231,1287.48512797,0.00011199,2]
[331413568,1720359025301,155.0,0.00011199,2]
[331413591,1720359031918,-1264.73271285,0.00012302,2]
[331413592,1720359031927,-1817.20672033,0.00012302,2]
[331413593,1720359031937,-1135.23446764,0.00012302,2]
[331413594,1720359031947,-717.97789183,0.00012302,2]
[331413595,1720359031956,-509.18844783,0.00012314,2]
[331413596,1720359031966,-266.23744785,0.00012314,2]
[331413597,1720359031975,-6850.68,0.00012964,2]
[331413598,1720359031985,-250.0,0.00013038,2]
[331413599,1720359031994,-1479.86250167,0.00013058,2]
[331413601,1720359032244,-3299.21382241,0.00013058,2]
[331413602,1720359032256,-70.92367592,0.00013058,2]
[331413603,1720359032266,-234.17263955,0.00013111,2]
[331413604,1720359032279,-157.53736045,0.00013111,2]
[331413605,1720359032289,-483.2242602,0.00013128,2]
[331413607,1720359032300,-1086.21202326,0.00013128,2]
[331413609,1720359032310,-276.15184313,0.00013128,2]
[331413610,1720359032323,-227.22563372,0.00013128,2]
[331413611,1720359032332,-1000.0,0.00013158,2]
[331413612,1720359032341,-188.38,0.00013201,2]
[331413613,1720359032351,-299.99,0.00013201,2]
[331413614,1720359032360,-290.97986156,0.00013472,2]
[331413615,1720359032369,-666.3145004,0.00013472,2]
[331413616,1720359032378,-660.31666942,0.00013516,2]
[331413617,1720359032388,-2775.68967099,0.00013526,2]
[331413618,1720359032398,-356.38582122,0.00013543,2]
[331413619,1720359032407,-156.31937905,0.00013543,2]
[331413620,1720359032416,-296.89731757,0.00013543,2]
[331413621,1720359032425,-150.0,0.00013573,2]
[331413624,1720359032837,-19999.99,0.00013574,2]
[331413625,1720359032860,-1104.64,0.00013574,2]
[331413626,1720359032870,-4417.99,0.00013574,2]
[331413627,1720359032879,-606.45792289,0.00013574,2]
[331413628,1720359032889,-671.04050753,0.00013574,2]
[331413629,1720359032898,-854.59,0.000136,2]
[331413630,1720359032908,-2732.6,0.00013653,2]
[331413631,1720359032918,-1630.1845532,0.00013654,2]
[331413632,1720359032928,-959.60022678,0.00013654,2]
[331413633,1720359032938,-250.0,0.00013699,2]
[331413634,1720359032948,-181.0,0.000137,2]
[331413635,1720359032959,-155.0,0.00013736,2]
[331413636,1720359032969,-750.0,0.00013736,2]
[331413637,1720359032979,-150.0,0.00013776,2]
[331413638,1720359032988,-164.95,0.00013778,2]
[331413639,1720359032998,-941.070396,0.00013801,2]
[331413640,1720359033008,-165.652823,0.00013801,2]
[331413641,1720359033017,-211.254665,0.00013801,2]
[331413642,1720359033027,-4712.30652,0.00013801,2]
[331413643,1720359033036,-6950.4756,0.0001389,2]
[331413644,1720359033046,-679.8807,0.0001389,2]
[331413645,1720359033055,-245000.0,0.0001389,2]
[331413646,1720359033065,-161.28077976,0.00013899,2]
[331413647,1720359033074,-165.47215247,0.000139,2]
[331413648,1720359033084,-970.0,0.000139,2]
[331413649,1720359033093,-160.13713916,0.000139,2]
[331413650,1720359033103,-171.03600203,0.000139,2]
[331413651,1720359033112,-150.50133856,0.000139,2]
[331413652,1720359033122,-320.77112397,0.00013921,2]
[331413653,1720359033131,-1378.895161,0.00013973,2]
[331413654,1720359033140,-941.070396,0.00013974,2]
[331413655,1720359033149,-4712.30652,0.00013974,2]
[331413656,1720359033159,-87742.2252386,0.00013989,2]
[331413657,1720359033169,-73536.3411524,0.0001399,2]
[331413658,1720359033179,-309.29622159,0.00013999,2]
[331413659,1720359033188,-349.89001083,0.00013999,2]
[331413660,1720359033198,-4517.159,0.00014,2]
[331413661,1720359033208,-361.0,0.00014,2]
[331413662,1720359033217,-4172.754,0.00014,2]
[331413663,1720359033228,-1830.0,0.00014,2]
[331413664,1720359033238,-1251.0,0.00014,2]
[331413665,1720359033247,-1659.0,0.00014,2]
[331413666,1720359033256,-245230.8488356,0.00014,2]
[331413667,1720359033266,-1015.14263321,0.00014,2]
[331413668,1720359033275,-53752.0,0.00014,2]
[331413669,1720359033284,-93986.2157737,0.00014,2]
[331413670,1720359033297,-5720.4,0.00014,2]
[331413671,1720359033344,-5874.95901024,0.00014,2]
[331413672,1720359033527,-1522.50156297,0.00014,2]
[331413675,1720359040794,-450.95794745,0.00013128,2]
[331413676,1720359040804,-2099.54463137,0.00013574,2]
[331413677,1720359040817,-73451.46685018,0.00013574,2]
[331413678,1720359040827,-341.79200041,0.00013574,2]
[331413679,1720359040837,-562.745,0.00014,2]
[331413680,1720359040847,-444.0,0.00014,2]
[331413681,1720359040856,-451.146,0.00014,2]
[331413682,1720359040867,-622.653,0.00014,2]
[331413683,1720359040876,-55580.53479117,0.00014,2]
[331413684,1720359040888,-59841.20793247,0.00014,2]
[331413685,1720359040900,-2256.33146258,0.00014,2]
[331413686,1720359040911,-464.64,0.00014,2]
[331413687,1720359040959,-382.60523184,0.00014,2]
[331413691,1720359041152,-809.0,0.00014,2]
[331413693,1720359041162,-832.9312724,0.00014,2]
[331413700,1720359041174,-283.94,0.00014,2]
[331413706,1720359041185,-1214.80253227,0.00014,2]
[331413750,1720359041496,-858.74623956,0.00014,2]
[331413753,1720359041509,-1185.34288774,0.00014,2]
[331413755,1720359041523,-285.375,0.00014,2]
[331413757,1720359041535,-1622.99,0.00014,2]
[331413812,1720359043119,-4978.72223368,0.00014,2]
[331413816,1720359043131,-5658.86,0.00014,2]
[331413817,1720359043144,-495.87980047,0.00014,2]
[331413819,1720359043156,-5958.007393,0.00014,2]
[331413821,1720359043168,-2829.58704795,0.00014,2]
[331413824,1720359044028,-570.0,0.00014,2]
[331413825,1720359044040,-1143.51093712,0.00014,2]
[331413826,1720359044052,-758.19771398,0.00014,2]
[331413827,1720359045984,-500.0,0.00014,2]
[331413828,1720359045996,-97841.03793547,0.00014,2]
[331413829,1720359046008,-286.16144458,0.00014,2]
[331413877,1720359046589,-29810.0,0.00014,2]
[331413879,1720359046604,-2855.44209956,0.00014,2]
[331413882,1720359046617,-320045.5505197,0.00014,2]
[331413884,1720359046629,-1024276.18991327,0.00014,2]
[331413901,1720359046799,-5702.0,0.00014,2]
[331413925,1720359113199,260.16132395,0.00026,120]
[331413926,1720359231871,171.05,0.00010508,2]
[331413927,1720359245819,233.35031021,0.000118,2]
[331413928,1720359245919,3022.31364966,0.000118,2]
[331413929,1720359246022,3044.2610606,0.000118,2]
[331413931,1720359343686,10455.94204854,0.000112,2]
[331413935,1720359396353,1786.42972449,0.0001,2]
[331413939,1720359449274,218.80500075,0.00011199,2]